fUSD/lending_fUSD_20260617
["ID","MTS","AMOUNT","RATE_DAILY","PERIOD"]
[425337239,1781698645000,-437.39317523,0.00029698,7]
[425337234,1781698645000,-464.02589543,0.00029698,7]
[425337240,1781698645000,-435.49869073,0.00029698,7]
[425337241,1781698645000,-452.79528203,0.00029698,2]
[425337238,1781698645000,-201.37116919,0.00029698,7]
[425337231,1781698645000,-311.31878383,0.00029698,7]
[425337230,1781698645000,-247.21875952,0.00029698,7]
[425337237,1781698645000,-226.39028697,0.00029698,7]
[425337232,1781698645000,-233.97262355,0.00029698,7]
[425337235,1781698645000,-451.59264128,0.00029698,7]
[425337233,1781698645000,-377.62593374,0.00029698,7]
[425337236,1781698645000,-331.42584623,0.00029698,7]
[425337244,1781698645000,-450.86236193,0.00029698,2]
[425337247,1781698645000,-468.43447595,0.00029698,7]
[425337245,1781698645000,-410.45976411,0.00029698,7]
[425337243,1781698645000,-498.83860868,0.00029698,2]
[425337246,1781698645000,-227.38575425,0.00029698,7]
[425337202,1781698645000,-436.20913464,0.00029698,7]
[425337229,1781698645000,-165.49040856,0.00029698,2]
[425337225,1781698645000,-174.08276585,0.00029698,7]
[425337242,1781698645000,-178.6763225,0.00029698,2]
[425337227,1781698645000,-466.04692639,0.00029698,7]
[425337228,1781698645000,-426.66196277,0.00029698,7]
[425337211,1781698645000,-420.99143257,0.00029698,7]
[425337201,1781698645000,-447.35888299,0.00029698,7]
[425337212,1781698645000,-453.78845357,0.00029698,7]
[425337209,1781698645000,-429.70904658,0.00029698,7]
[425337207,1781698645000,-232.87883147,0.00029698,7]
[425337205,1781698645000,-407.91833247,0.00029698,7]
[425337206,1781698645000,-159.98959902,0.00029698,2]
[425337208,1781698645000,-203.18865755,0.00029698,7]
[425337213,1781698645000,-438.80987166,0.00029698,7]
[425337204,1781698645000,-151.22218563,0.00029698,7]
[425337214,1781698645000,-446.69324162,0.00029698,7]
[425337224,1781698645000,-165.64447569,0.00029698,7]
[425337222,1781698645000,-426.30980553,0.00029698,7]
[425337221,1781698645000,-461.37671432,0.00029698,7]
[425337215,1781698645000,-472.33858618,0.00029698,7]
[425337223,1781698645000,-405.39963185,0.00029698,7]
[425337217,1781698645000,-457.21643915,0.00029698,7]
[425337218,1781698645000,-472.03898078,0.00029698,7]
[425337219,1781698645000,-427.45002542,0.00029698,7]
[425337216,1781698645000,-418.8938871,0.00029698,7]
[425337260,1781698646000,-150.0,0.00029959,30]
[425337279,1781698646000,-150.0,0.00030028,30]
[425337268,1781698646000,-150.0,0.00029995,30]
[425337280,1781698646000,-150.0,0.0003003,30]
[425337269,1781698646000,-2499.99,0.0003,2]
[425337265,1781698646000,-428.10487983,0.00029959,30]
[425337266,1781698646000,-150.0,0.00029959,30]
[425337263,1781698646000,-150.0,0.00029959,30]
[425337262,1781698646000,-150.0,0.00029959,30]
[425337261,1781698646000,-150.0,0.00029959,30]
[425337264,1781698646000,-150.0,0.00029959,30]
[425337253,1781698646000,-537.57,0.00029828,8]
[425337258,1781698646000,-150.0,0.00029959,30]
[425337267,1781698646000,-428.10487983,0.00029993,30]
[425337259,1781698646000,-150.0,0.00029959,30]
[425337257,1781698646000,-307.0,0.00029958,30]
[425337248,1781698646000,-400.38,0.00029701,7]
[425337249,1781698646000,-161.82,0.00029759,2]
[425337252,1781698646000,-216.65,0.00029828,8]
[425337255,1781698646000,-80540.70262416,0.000299,2]
[425337254,1781698646000,-350.0,0.00029829,30]
[425337250,1781698646000,-2355.0,0.00029764,3]
[425337271,1781698646000,-2500.0,0.0003,2]
[425337256,1781698646000,-262.0,0.00029958,30]
[425337278,1781698646000,-428.10487983,0.00030026,30]
[425337251,1781698646000,-200.19,0.0002978,7]
[425337273,1781698646000,-1376.69366566,0.0003,7]
[425337299,1781698646000,-731.42,0.0003013,7]
[425337298,1781698646000,-13071.1115,0.0003013,7]
[425337297,1781698646000,-254.35801595,0.0003013,7]
[425337296,1781698646000,-6470.61257406,0.0003013,7]
[425337294,1781698646000,-1196.69,0.0003013,7]
[425337295,1781698646000,-3520.16270012,0.0003013,7]
[425337292,1781698646000,-184.96108371,0.0003013,30]
[425337293,1781698646000,-122091.00091982,0.0003013,7]
[425337285,1781698646000,-428.10487983,0.00030093,30]
[425337290,1781698646000,-428.10487983,0.00030127,30]
[425337286,1781698646000,-150.0,0.00030098,30]
[425337300,1781698646000,-3953.71535539,0.0003013,7]
[425337291,1781698646000,-395.67943243,0.00030129,120]
[425337289,1781698646000,-150.0,0.00030117,30]
[425337287,1781698646000,-150.0,0.00030102,30]
[425337282,1781698646000,-150.0,0.0003006,30]
[425337284,1781698646000,-150.0,0.00030066,30]
[425337283,1781698646000,-150.0,0.00030065,30]
[425337281,1781698646000,-428.10487983,0.0003006,30]
[425337275,1781698646000,-150.0,0.00030012,30]
[425337276,1781698646000,-150.0,0.00030025,2]
[425337277,1781698646000,-150.0,0.00030025,2]
[425337274,1781698646000,-150.0,0.00030009,30]
[425337270,1781698646000,-2499.99,0.0003,2]
[425337288,1781698646000,-150.0,0.0003011,30]
[425337272,1781698646000,-1376.69366566,0.0003,7]
[425337302,1781698647000,-1565.87433723,0.0003013,7]
[425337303,1781698647000,-3166.92512006,0.0003013,7]
[425337301,1781698647000,-4307.21580839,0.0003013,7]
[425337311,1781698648000,151.0,0.00016237,2]
[425337312,1781698648000,824.89140967,0.00016237,2]
[425337310,1781698648000,-1609.34329928,0.0003013,7]
[425337309,1781698648000,-2139.95864645,0.0003013,7]
[425337306,1781698648000,-889.51990694,0.0003013,7]
[425337307,1781698648000,-145051.10013725,0.0003013,7]
[425337308,1781698648000,-142419.05959462,0.0003013,7]
[425337305,1781698648000,-304.41197262,0.0003013,7]
[425337314,1781698649000,289.13517764,0.00013999,2]
[425337313,1781698649000,600.0,0.00014299,2]
[425337317,1781698667000,973.44,0.00013698,2]
[425337318,1781698667000,973.44,0.0001478,2]
[425337319,1781698703000,350.0,0.00013699,2]
[425337320,1781698721000,-121.60859033,0.00014899,2]
[425337322,1781698722000,-500.0,0.00014899,2]
[425337323,1781698722000,-97.5,0.00014899,2]
[425337321,1781698722000,-378.39140967,0.00014899,2]
[425337327,1781698724000,627.27298801,0.00013879,2]
[425337326,1781698724000,500.0,0.000137,2]
[425337325,1781698724000,-94.0,0.00014899,2]
[425337324,1781698724000,-402.5,0.00014899,2]
[425337330,1781698741000,-69.89140967,0.00014899,2]
[425337329,1781698741000,-500.0,0.00014899,2]
[425337328,1781698741000,-406.0,0.00014899,2]
[425337333,1781698742000,-500.0,0.00014898,2]
[425337332,1781698742000,-500.0,0.00014898,2]
[425337334,1781698742000,-500.0,0.00014898,2]
[425337331,1781698742000,-500.0,0.00014898,2]
[425337337,1781698742000,-500.0,0.00014898,2]
[425337338,1781698742000,-500.0,0.00014898,2]
[425337335,1781698742000,-530.12347311,0.00014898,2]
[425337336,1781698742000,-500.0,0.00014898,2]
[425337339,1781698742000,-369.87652689,0.00014898,2]
[425337342,1781698743000,3464.1,0.00014659,2]
[425337341,1781698743000,-366.37652689,0.00014898,2]
[425337340,1781698743000,-130.12347311,0.00014898,2]
[425337345,1781698745000,-342.26793656,0.00014898,2]
[425337344,1781698745000,-500.0,0.00014898,2]
[425337343,1781698745000,-133.62347311,0.00014898,2]
[425337346,1781698746000,151.0,0.00013699,2]
[425337348,1781698761000,-500.0,0.00014898,2]
[425337347,1781698761000,-157.73206344,0.00014898,2]
[425337349,1781698761000,-500.0,0.00014898,2]
[425337351,1781698761000,-500.0,0.00014898,2]
[425337350,1781698761000,-500.0,0.00014898,2]
[425337353,1781698761000,-500.0,0.00014898,2]
[425337354,1781698761000,-500.0,0.00014898,2]
[425337356,1781698761000,-242.26793656,0.00014898,2]
[425337355,1781698761000,-500.0,0.00014898,2]
[425337352,1781698761000,-500.0,0.00014898,2]
[425337357,1781698765000,-257.73206344,0.00014898,2]
[425337358,1781698765000,-238.76793656,0.00014898,2]
[425337363,1781698768000,-294.72921077,0.00015068,2]
[425337362,1781698768000,-150.0,0.00014987,2]
[425337361,1781698768000,-177.0540663,0.00014925,2]
[425337359,1781698768000,-177.0540663,0.00014914,2]
[425337360,1781698768000,-177.0540663,0.00014925,2]
[425337364,1781698770000,-305.27078923,0.00015068,2]
[425337365,1781698770000,-191.22921077,0.00015068,2]
[425337366,1781698771000,150.0,0.00013835,2]
[425337367,1781698772000,150.0,0.00013972,2]
[425337368,1781698773000,-496.5,0.00015068,2]
[425337371,1781698775000,-115.5,0.00015861,2]
[425337370,1781698775000,-281.0,0.00015433,2]
[425337369,1781698775000,-103.5,0.00015068,2]
[425337372,1781698776000,-496.5,0.00015861,2]
[425337374,1781698779000,-138.56,0.00016137,2]
[425337373,1781698779000,-361.44,0.00015861,2]
[425337377,1781698780000,-77.2632,0.00016137,2]
[425337376,1781698780000,-328.7368,0.00016137,2]
[425337375,1781698780000,151.0,0.0001462,2]
[425337378,1781698782000,-157.73206344,0.00016137,2]
[425337379,1781698784000,187.43749859,0.00013904,2]
[425337380,1781698788000,994.7,0.00013698,2]
[425337381,1781698867000,983.72,0.00013698,2]
[425337382,1781698949000,984.25117625,0.00013698,2]
[425337383,1781698971000,-242.46731522,0.00014816,2]
[425337384,1781699024000,-975.89140967,0.00014982,2]
[425337386,1781699042000,677.19536621,0.00013698,2]
[425337385,1781699042000,-300.0,0.0001503,2]
[425337387,1781699093000,-327.04529182,0.00015029,2]
[425337398,1781699095000,-315.98856022,0.00015029,2]
[425337388,1781699095000,-500.0,0.00015029,2]
[425337389,1781699095000,-496.64341919,0.00015029,2]
[425337390,1781699095000,-500.0,0.00015029,2]
[425337393,1781699095000,-219.98984082,0.00015029,2]
[425337391,1781699095000,-414.33421936,0.00015029,2]
[425337392,1781699095000,-500.0,0.00015029,2]
[425337396,1781699095000,-500.0,0.00015029,2]
[425337394,1781699095000,-500.0,0.00015029,2]
[425337395,1781699095000,-500.0,0.00015029,2]
[425337397,1781699095000,-500.0,0.00015029,2]
[425337400,1781699095000,-616.59974072,0.00015029,2]
[425337409,1781699095000,-359.67025145,0.00015029,2]
[425337407,1781699095000,-500.0,0.00015029,2]
[425337406,1781699095000,-500.0,0.00015029,2]
[425337405,1781699095000,-500.0,0.00015029,2]
[425337408,1781699095000,-409.4515932,0.00015029,2]
[425337403,1781699095000,-500.0,0.00015029,2]
[425337401,1781699095000,-500.0,0.00015029,2]
[425337402,1781699095000,-500.84013449,0.00015029,2]
[425337399,1781699095000,-500.0,0.00015029,2]
[425337404,1781699095000,-166.48224055,0.00015029,2]
[425337418,1781699097000,-500.0,0.00015029,2]
[425337410,1781699097000,-140.32974855,0.00015029,2]
[425337411,1781699097000,-500.0,0.00015029,2]
[425337413,1781699097000,-500.0,0.00015029,2]
[425337414,1781699097000,-500.0,0.00015029,2]
[425337412,1781699097000,-500.0,0.00015029,2]
[425337417,1781699097000,-500.0,0.00015029,2]
[425337416,1781699097000,-367.55203353,0.00015029,2]
[425337419,1781699097000,-500.0,0.00015029,2]
[425337415,1781699097000,-500.0,0.00015029,2]
[425337421,1781699097000,-500.0,0.00015029,2]
[425337423,1781699097000,-500.0,0.00015029,2]
[425337422,1781699097000,-500.0,0.00015029,2]
[425337424,1781699097000,-500.0,0.00015029,2]
[425337420,1781699097000,-500.0,0.00015029,2]
[425337426,1781699097000,-500.0,0.00015029,2]
[425337425,1781699097000,-500.0,0.00015029,2]
[425337427,1781699097000,-500.0,0.00015029,2]
[425337428,1781699097000,-500.0,0.00015029,2]
[425337429,1781699097000,-500.0,0.00015029,2]
[425337430,1781699097000,-492.11821792,0.00015029,2]
[425337431,1781699098000,-7.88178208,0.00015029,2]
[425337433,1781699098000,-500.0,0.00015029,2]
[425337432,1781699098000,-278.65141075,0.00015029,2]
[425337436,1781699098000,-300.0,0.00015029,2]
[425337435,1781699098000,-500.0,0.00015029,2]
[425337434,1781699098000,-500.0,0.00015029,2]
[425337437,1781699099000,-7913.46680717,0.00015031,2]
[425337438,1781699099000,-10000.0,0.00015031,2]
[425337440,1781699105000,939.65333366,0.00013698,2]
[425337439,1781699105000,-3000.0,0.00015031,2]
[425337442,1781699127000,-500.0,0.00015029,2]
[425337443,1781699127000,-4134.0,0.00015031,2]
[425337444,1781699148000,-496.5,0.00015031,2]
[425337446,1781699166000,-10000.0,0.00015031,2]
[425337445,1781699166000,-496.5,0.00015031,2]
[425337450,1781699183000,-10000.0,0.00015031,2]
[425337449,1781699183000,-1623.59085805,0.00015031,2]
[425337452,1781699201000,-10000.0,0.00015031,2]
[425337451,1781699201000,-156.6359353,0.0001503,2]
[425337453,1781699206000,-12000.0,0.00015031,2]
[425337465,1781699228000,-462.0,0.0001503,2]
[425337467,1781699229000,-500.0,0.0001503,2]
[425337466,1781699229000,-38.0,0.0001503,2]
[425337468,1781699229000,-4.313,0.0001503,2]
[425337470,1781699254000,939.6585714,0.00013698,2]
[425337469,1781699254000,-256.1503662,0.0001503,2]
[425337472,1781699271000,2438.81051,0.00013698,2]
[425337471,1781699271000,-256.1503662,0.0001503,2]
[425337478,1781699322000,939.66307652,0.00013698,2]
[425337479,1781699397000,939.65666677,0.00013698,2]
[425337501,1781699431000,-500.0,0.00015029,2]
[425337499,1781699431000,-300.0,0.00015028,2]
[425337498,1781699431000,-151.0,0.00014919,2]
[425337500,1781699431000,-500.0,0.00015029,2]
[425337502,1781699431000,-500.0,0.00015029,2]
[425337507,1781699431000,-104.57825976,0.0001503,2]
[425337506,1781699431000,-426.30109924,0.00015029,2]
[425337505,1781699431000,-500.0,0.00015029,2]
[425337504,1781699431000,-500.0,0.00015029,2]
[425337509,1781699431000,-500.0,0.0001503,2]
[425337508,1781699431000,-340.50576628,0.0001503,2]
[425337503,1781699431000,-500.0,0.00015029,2]
[425337577,1781699432000,-500.0,0.00016438,2]
[425337552,1781699432000,-500.0,0.00016438,2]
[425337553,1781699432000,-500.0,0.00016438,2]
[425337548,1781699432000,-500.0,0.00016438,2]
[425337545,1781699432000,-166.66,0.0001634,2]
[425337550,1781699432000,-500.0,0.00016438,2]
[425337540,1781699432000,-151.0,0.00016237,2]
[425337546,1781699432000,-354.4,0.00016438,2]
[425337559,1781699432000,-500.0,0.00016438,2]
[425337538,1781699432000,-151.0,0.00016237,2]
[425337535,1781699432000,-152.0,0.00016237,2]
[425337541,1781699432000,-151.0,0.00016237,2]
[425337544,1781699432000,-64813.7011,0.00016338,2]
[425337555,1781699432000,-500.0,0.00016438,2]
[425337562,1781699432000,-500.0,0.00016438,2]
[425337560,1781699432000,-500.0,0.00016438,2]
[425337564,1781699432000,-500.0,0.00016438,2]
[425337568,1781699432000,-500.0,0.00016438,2]
[425337571,1781699432000,-500.0,0.00016438,2]
[425337569,1781699432000,-500.0,0.00016438,2]
[425337572,1781699432000,-500.0,0.00016438,2]
[425337573,1781699432000,-500.0,0.00016438,2]
[425337574,1781699432000,-500.0,0.00016438,2]
[425337566,1781699432000,-500.0,0.00016438,2]
[425337576,1781699432000,-500.0,0.00016438,2]
[425337578,1781699432000,-162.62553214,0.00016438,2]
[425337536,1781699432000,-150.0,0.00016237,2]
[425337557,1781699432000,-500.0,0.00016438,2]
[425337537,1781699432000,-151.0,0.00016237,2]
[425337596,1781699432000,-500.0,0.00016438,2]
[425337533,1781699432000,-151.0,0.00016237,2]
[425337575,1781699432000,-500.0,0.00016438,2]
[425337518,1781699432000,-300.0,0.00015031,2]
[425337517,1781699432000,-1210.40391687,0.00015031,2]
[425337510,1781699432000,-500.0,0.0001503,2]
[425337511,1781699432000,-390.61369012,0.0001503,2]
[425337515,1781699432000,-500.0,0.00015031,2]
[425337514,1781699432000,-210.0,0.0001503,2]
[425337512,1781699432000,-228.93170428,0.0001503,2]
[425337513,1781699432000,-409.26677954,0.0001503,2]
[425337516,1781699432000,-3913.07819096,0.00015031,2]
[425337519,1781699432000,-6291.24037715,0.00015031,2]
[425337530,1781699432000,-151.0,0.00016237,2]
[425337526,1781699432000,-150.0,0.00015481,2]
[425337527,1781699432000,-939.65666677,0.00015566,2]
[425337521,1781699432000,-600.0,0.00015032,2]
[425337525,1781699432000,-150.0,0.00015331,2]
[425337523,1781699432000,-151.0,0.00015058,2]
[425337531,1781699432000,-151.0,0.00016237,2]
[425337524,1781699432000,-150.0,0.0001518,2]
[425337520,1781699432000,-57551.9841079,0.00015031,2]
[425337528,1781699432000,-200.0,0.00016137,2]
[425337522,1781699432000,-160.0,0.00015035,2]
[425337529,1781699432000,-177.0540663,0.00016156,2]
[425337532,1781699432000,-150.0,0.00016237,2]
[425337543,1781699432000,-200.0,0.00016298,2]
[425337534,1781699432000,-152.0,0.00016237,2]
[425337542,1781699432000,-151.0,0.00016237,2]
[425337539,1781699432000,-151.0,0.00016237,2]
[425337579,1781699432000,-500.0,0.00016438,2]
[425337614,1781699432000,-910.12,0.000172,2]
[425337592,1781699432000,-500.0,0.00016438,2]
[425337610,1781699432000,-5080.18,0.000172,2]
[425337609,1781699432000,-166.66,0.00017028,2]
[425337613,1781699432000,-200.0,0.000172,2]
[425337617,1781699432000,-1268.96,0.000172,2]
[425337619,1781699432000,-166.66,0.00017372,2]
[425337620,1781699432000,-939.65666677,0.00017435,2]
[425337622,1781699432000,-166.66,0.00017716,2]
[425337591,1781699432000,-500.0,0.00016438,2]
[425337624,1781699432000,-505.0,0.00018,2]
[425337625,1781699432000,-550.0,0.00018,2]
[425337623,1781699432000,-496.5,0.00017907,2]
[425337626,1781699432000,-166.66,0.0001806,2]
[425337618,1781699432000,-1806.66,0.000172,2]
[425337612,1781699432000,-283.08,0.000172,2]
[425337627,1781699432000,-2000.0,0.00018164,2]
[425337637,1781699432000,-1555.5,0.00019824,2]
[425337630,1781699432000,-505.0,0.00018954,2]
[425337638,1781699432000,-505.0,0.00019908,3]
[425337639,1781699432000,-182.0,0.0002,2]
[425337631,1781699432000,-3619.73,0.00019208,2]
[425337640,1781699432000,-413.0,0.0002,2]
[425337629,1781699432000,-354.4,0.0001841,2]
[425337633,1781699432000,-939.65666677,0.00019303,2]
[425337635,1781699432000,-330.48,0.00019455,2]
[425337632,1781699432000,-1500.0,0.00019276,2]
[425337636,1781699432000,-315.19,0.00019507,2]
[425337634,1781699432000,-912.3,0.0001935,2]
[425337641,1781699432000,-182.0,0.0002,2]
[425337628,1781699432000,-500.0,0.00018312,2]
[425337611,1781699432000,-252.37,0.000172,2]
[425337621,1781699432000,-162.27,0.00017716,2]
[425337608,1781699432000,-166.66,0.00016684,2]
[425337581,1781699432000,-500.0,0.00016438,2]
[425337580,1781699432000,-500.0,0.00016438,2]
[425337583,1781699432000,-500.0,0.00016438,2]
[425337582,1781699432000,-500.0,0.00016438,2]
[425337616,1781699432000,-912.3,0.000172,2]
[425337588,1781699432000,-500.0,0.00016438,2]
[425337584,1781699432000,-500.0,0.00016438,2]
[425337590,1781699432000,-500.0,0.00016438,2]
[425337585,1781699432000,-500.0,0.00016438,2]
[425337586,1781699432000,-500.0,0.00016438,2]
[425337589,1781699432000,-500.0,0.00016438,2]
[425337594,1781699432000,-500.0,0.00016438,2]
[425337595,1781699432000,-500.0,0.00016438,2]
[425337587,1781699432000,-500.0,0.00016438,2]
[425337604,1781699432000,-208.98352537,0.00016534,2]
[425337607,1781699432000,-600.0,0.00016534,2]
[425337615,1781699432000,-656.89,0.000172,2]
[425337605,1781699432000,-252.02763914,0.00016534,2]
[425337606,1781699432000,-300.06717808,0.00016534,2]
[425337601,1781699432000,-300.0,0.00016533,2]
[425337598,1781699432000,-500.0,0.00016438,2]
[425337602,1781699432000,-250.0,0.00016533,2]
[425337600,1781699432000,-500.0,0.00016533,2]
[425337597,1781699432000,-500.0,0.00016438,2]
[425337593,1781699432000,-600.0,0.00016438,2]
[425337603,1781699432000,-600.0,0.00016534,2]
[425337599,1781699432000,-200.0,0.00016461,2]
[425337666,1781699433000,-316.47,0.00020737,2]
[425337668,1781699433000,-330.48,0.00020795,2]
[425337675,1781699433000,-1672.7364795,0.0002092,2]
[425337680,1781699433000,-125.93769106,0.00020959,2]
[425337664,1781699433000,-315.19,0.00020631,2]
[425337667,1781699433000,-316.61,0.00020763,2]
[425337665,1781699433000,-330.48,0.00020679,2]
[425337673,1781699433000,-316.47,0.00020883,2]
[425337672,1781699433000,-505.0,0.00020862,4]
[425337669,1781699433000,-239.63927881,0.000208,2]
[425337677,1781699433000,-316.39,0.00020958,2]
[425337674,1781699433000,-330.48,0.00020903,2]
[425337671,1781699433000,-193.180596,0.00020848,2]
[425337676,1781699433000,-203.220419,0.00020924,2]
[425337679,1781699433000,-189.25230894,0.00020959,2]
[425337682,1781699433000,-239.63927881,0.00021,2]
[425337683,1781699433000,-182.0,0.00021,2]
[425337678,1781699433000,-316.61,0.00020958,2]
[425337661,1781699433000,-330.48,0.00020549,2]
[425337670,1781699433000,-315.19,0.00020805,2]
[425337659,1781699433000,-316.39,0.00020533,2]
[425337703,1781699433000,-239.63927881,0.000212,2]
[425337662,1781699433000,-316.47,0.00020571,2]
[425337681,1781699433000,-731.42,0.0002099,2]
[425337647,1781699433000,-330.48,0.00020002,2]
[425337643,1781699433000,-292.0,0.0002,2]
[425337644,1781699433000,-152.0,0.0002,2]
[425337645,1781699433000,-305.0,0.0002,2]
[425337646,1781699433000,-154.380671,0.0002,2]
[425337642,1781699433000,-152.0,0.0002,2]
[425337648,1781699433000,-316.47,0.00020118,2]
[425337649,1781699433000,-315.19,0.00020156,2]
[425337651,1781699433000,-316.61,0.00020232,2]
[425337650,1781699433000,-330.48,0.00020229,2]
[425337663,1781699433000,-239.63927881,0.000206,2]
[425337653,1781699433000,-316.47,0.00020374,2]
[425337652,1781699433000,-1613.0535,0.00020372,2]
[425337654,1781699433000,-354.4,0.00020381,2]
[425337657,1781699433000,-330.48,0.00020403,2]
[425337655,1781699433000,-399.0,0.00020395,2]
[425337656,1781699433000,-239.63927881,0.000204,2]
[425337660,1781699433000,-316.61,0.00020533,2]
[425337658,1781699433000,-315.19,0.00020425,2]
[425337684,1781699433000,-413.0,0.00021,2]
[425337710,1781699433000,-213.752762,0.00021325,2]
[425337685,1781699433000,-182.0,0.00021,2]
[425337715,1781699433000,-330.48,0.00021428,2]
[425337730,1781699433000,-947.66880428,0.00021544,2]
[425337711,1781699433000,-315.19,0.00021343,2]
[425337713,1781699433000,-316.47,0.00021355,2]
[425337712,1781699433000,-330.48,0.00021351,2]
[425337714,1781699433000,-316.61,0.00021427,2]
[425337717,1781699433000,-316.47,0.00021456,2]
[425337716,1781699433000,-315.19,0.00021455,2]
[425337718,1781699433000,-1734.62772924,0.00021468,2]
[425337726,1781699433000,-15199.54564638,0.00021544,2]
[425337719,1781699433000,-912.3,0.000215,2]
[425337724,1781699433000,-413.48160874,0.00021544,2]
[425337725,1781699433000,-385.00293256,0.00021544,2]
[425337720,1781699433000,-330.48,0.00021503,2]
[425337721,1781699433000,-154.74,0.00021534,2]
[425337723,1781699433000,-10639.8415557,0.00021544,2]
[425337729,1781699433000,-4577.2567882,0.00021544,2]
[425337727,1781699433000,-3674.96102248,0.00021544,2]
[425337686,1781699433000,-152.0,0.00021,2]
[425337707,1781699433000,-2165.73,0.00021273,2]
[425337708,1781699433000,-316.39,0.00021284,2]
[425337722,1781699433000,-500.0,0.00021544,2]
[425337709,1781699433000,-316.61,0.00021284,2]
[425337706,1781699433000,-330.48,0.0002127,2]
[425337689,1781699433000,-305.0,0.00021,2]
[425337694,1781699433000,-330.48,0.00021097,2]
[425337693,1781699433000,-165.820326,0.00021026,2]
[425337690,1781699433000,-330.48,0.00021003,2]
[425337688,1781699433000,-157.0,0.00021,2]
[425337687,1781699433000,-292.0,0.00021,2]
[425337692,1781699433000,-230.54749106,0.00021015,2]
[425337691,1781699433000,-85.92250894,0.00021015,2]
[425337695,1781699433000,-130.19075271,0.00021097,2]
[425337697,1781699433000,-316.61,0.00021129,2]
[425337699,1781699433000,-244.69877021,0.00021136,2]
[425337702,1781699433000,-330.48,0.00021186,2]
[425337696,1781699433000,-184.99924729,0.00021097,2]
[425337700,1781699433000,-59.18312949,0.00021171,2]
[425337704,1781699433000,-315.19,0.00021225,2]
[425337698,1781699433000,-71.77122979,0.00021136,2]
[425337701,1781699433000,-880.47353728,0.00021171,2]
[425337705,1781699433000,-316.47,0.00021249,2]
[425337728,1781699433000,-584.0,0.00021544,2]
[425337739,1781699439000,-310.65,0.00021449,2]
[425337742,1781699439000,-3095.98226772,0.00021544,2]
[425337741,1781699439000,-196.61655483,0.00021544,2]
[425337743,1781699439000,-1483.57598021,0.00021544,2]
[425337745,1781699439000,-3484.2,0.00021544,2]
[425337740,1781699439000,-500.0,0.00021544,2]
[425337779,1781699440000,-182.0,0.00022,2]
[425337784,1781699440000,-151.0,0.00022015,2]
[425337787,1781699440000,-199.88240021,0.00022016,2]
[425337799,1781699440000,-500.0,0.00022016,2]
[425337801,1781699440000,-151.0,0.00022016,2]
[425337803,1781699440000,-500.0,0.00022016,2]
[425337793,1781699440000,-151.0,0.00022016,2]
[425337791,1781699440000,-151.0,0.00022016,2]
[425337795,1781699440000,-500.0,0.00022016,2]
[425337805,1781699440000,-151.0,0.00022016,2]
[425337789,1781699440000,-1798.80895522,0.00022016,2]
[425337809,1781699440000,-151.0,0.00022016,2]
[425337807,1781699440000,-500.0,0.00022016,2]
[425337822,1781699440000,-500.0,0.00022016,2]
[425337783,1781699440000,-154.380671,0.00022,2]
[425337826,1781699440000,-500.0,0.00022016,2]
[425337824,1781699440000,-151.0,0.00022016,2]
[425337832,1781699440000,-151.0,0.00022016,2]
[425337813,1781699440000,-151.0,0.00022016,2]